bitfinex/quotes_ETHUSD_20240827
["timestamp","ask_amount","ask_price","bid_price","bid_amount"]
[1724755631289,3.78053,2645.2,2644.5,9.149322]
[1724755631489,4.53692202,2645.4,2644.5,12.930732]
[1724755631744,4.53692202,2645.4,2644.6,7.9578]
[1724755631906,3.78036,2645.3,2644.6,9.2508732]
[1724755632420,3.77972,2645.7,2644.8,3.78096]
[1724755632602,4.157692,2645.7,2644.9,7.9578]
[1724755633134,0.377972,2645.7,2644.9,7.9578]
[1724755633334,3.77952,2645.9,2645.1,7.532]
[1724755633541,3.0870102,2646.2,2645.2,11.38795506]
[1724755633542,3.7792,2646.1,2645.2,11.38795506]
[1724755633753,0.30870102,2646.1,2645.2,11.38795506]
[1724755633959,13.3751302,2646.5,2645.2,7.60760506]
[1724755634739,6.77871,2646.4,2645.2,7.60760506]
[1724755635252,3.0,2646.4,2645.2,7.60760506]
[1724755635546,3.0870102,2646.5,2645.4,7.5682]
[1724755636110,3.0870102,2646.5,2645.5,8.09349413]
[1724755636415,8.40373968,2646.8,2645.6,8.0179]
[1724755636844,3.0870102,2646.8,2645.6,11.79773]
[1724755637145,1.10191296,2646.7,2645.7,9.197673]
[1724755637413,1.10191296,2646.7,2645.8,0.07558771]
[1724755637559,3.0870102,2646.8,2645.9,8.0179]
[1724755637730,3.77831,2646.7,2645.9,8.0179]
[1724755638457,3.0,2646.6,2645.9,8.0179]
[1724755638663,6.77851,2646.6,2645.9,8.0179]
[1724755638817,8.29674897,2646.6,2645.9,8.0179]
[1724755639026,4.51823897,2646.6,2645.9,8.0179]
[1724755639722,6.77852,2646.6,2645.9,8.0179]
[1724755639927,3.0,2646.5,2645.9,8.0179]
[1724755640739,6.77867,2646.5,2645.9,8.0179]
[1724755640938,3.0,2646.5,2645.9,8.0179]
[1724755642047,6.77858,2646.5,2645.9,8.0179]
[1724755642396,7.83429,2646.5,2645.9,8.0179]
[1724755642540,3.0,2646.5,2645.9,8.0179]
[1724755643446,3.0,2646.5,2646.0,0.55]
[1724755643789,3.0,2646.5,2646.2,7.8233]
[1724755644007,3.0,2646.7,2646.2,7.8233]
[1724755644160,3.0,2646.7,2646.2,8.66818748]
[1724755645084,6.77829,2646.7,2646.2,8.66818748]
[1724755645248,6.77829,2646.7,2646.2,7.8233]
[1724755645249,3.77844,2646.6,2646.2,7.8233]
[1724755646081,3.77867,2646.5,2646.2,7.8233]
[1724755646657,3.77873,2646.4,2646.2,7.8233]
[1724755648392,7.55701,2646.6,2646.2,7.8233]
[1724755648551,8.54355602,2646.6,2646.2,7.8233]
[1724755648977,3.77859,2646.5,2646.2,7.8233]
[1724755649176,3.77873,2646.4,2646.2,7.8233]
[1724755649379,4.6331026,2646.4,2646.2,7.8233]
[1724755650475,0.8543726,2646.4,2646.2,7.8233]
[1724755651554,3.77886,2646.3,2646.0,7.9095]
[1724755651864,3.77918,2646.1,2645.3,7.9095]
[1724755652077,3.77953,2645.9,2645.3,7.9095]
[1724755652246,3.77973,2645.7,2645.3,7.9095]
[1724755652503,3.0,2645.6,2645.3,7.9095]
[1724755655143,3.0,2645.8,2645.3,7.9095]
[1724755655442,4.1236898,2645.8,2645.3,7.9095]
[1724755656240,3.7798,2645.7,2645.3,7.9095]
[1724755656440,3.0,2645.6,2645.3,7.9095]
[1724755657050,3.0,2645.8,2645.3,7.9095]
[1724755657263,3.77892,2646.3,2645.6,8.0532]
[1724755657477,1.92247949,2646.7,2645.8,8.0532]
[1724755657478,3.77865,2646.5,2645.8,8.0532]
[1724755657630,7.55732,2646.5,2645.8,8.0532]
[1724755657817,3.77865,2646.5,2645.8,8.0532]
[1724755658158,3.77865,2646.5,2646.0,8.0268]
[1724755658558,3.77824,2646.8,2646.0,8.0268]
[1724755658728,3.77836,2646.7,2646.0,7.5075]
[1724755659055,7.55675,2646.7,2646.0,7.5075]
[1724755659415,3.77836,2646.7,2646.0,7.5075]
[1724755660460,3.0,2646.6,2646.0,7.5075]
[1724755660776,4.07866,2646.5,2646.0,7.5075]
[1724755660945,3.77866,2646.5,2646.0,7.5075]
[1724755663124,7.55732,2646.5,2646.0,7.5075]
[1724755663338,3.77866,2646.5,2646.0,7.5075]
[1724755663553,7.55731,2646.5,2646.0,7.5075]
[1724755663863,3.77876,2646.4,2646.0,7.5075]
[1724755665659,3.77857,2646.5,2646.0,7.5075]
[1724755667876,3.779,2646.2,2646.0,7.5075]
[1724755668282,7.5579,2646.3,2646.0,7.5075]
[1724755668722,3.77914,2646.1,2646.0,7.5075]
[1724755668923,6.77922,2646.1,2645.2,7.383]
[1724755669220,3.77934,2646.0,2645.3,7.383]
[1724755669384,3.77934,2646.0,2645.4,9.092433]
[1724755670519,5.31768948,2646.2,2645.4,12.872573]
[1724755670820,6.77919,2646.1,2645.5,7.9454]
[1724755671026,8.31774948,2646.1,2645.5,7.9454]
[1724755671208,6.77919,2646.1,2645.5,7.9454]
[1724755671603,8.31774948,2646.1,2645.5,7.9454]
[1724755672508,8.31774948,2646.1,2645.5,9.6076133]
[1724755673593,1.53855948,2646.0,2645.5,9.6076133]
[1724755673802,1.53855948,2645.9,2645.5,7.9454]
[1724755673999,1.53855948,2646.0,2645.5,7.9454]
[1724755674835,1.53855948,2645.9,2645.5,7.9454]
[1724755675146,1.53855948,2645.9,2645.5,9.117967]
[1724755675635,1.53855948,2645.8,2645.5,9.117967]
[1724755675936,1.53855948,2645.9,2645.5,9.117967]
[1724755676631,1.53855948,2645.8,2645.5,9.117967]
[1724755677504,1.53855948,2645.7,2645.5,9.117967]
[1724755677706,1.53855948,2645.7,2645.5,7.9454]
[1724755678236,3.78004,2645.5,2644.8,11.54033]
[1724755678443,1.54602362,2645.2,2644.8,7.7594]
[1724755678640,1.54602362,2645.1,2644.8,7.7594]
[1724755678930,1.54602362,2645.2,2644.8,3.78099]
[1724755679154,1.54602362,2645.2,2644.9,7.4257]
[1724755681805,1.54602362,2645.4,2645.1,11.52729]
[1724755682118,1.54602362,2645.3,2645.2,7.7468]
[1724755683100,1.54602362,2645.5,2645.3,3.78026]
[1724755683305,1.54602362,2645.5,2645.4,7.682]
[1724755683926,1.54602362,2645.6,2645.4,7.682]
[1724755684127,1.54602362,2645.5,2645.4,7.682]
[1724755684306,1.54602362,2645.6,2645.4,7.682]
[1724755684829,1.93304329,2645.7,2645.4,7.682]
[1724755684830,1.54602362,2645.7,2645.4,8.828241]
[1724755685345,1.54602362,2645.8,2645.4,4.926291]
[1724755685528,1.54602362,2645.7,2645.5,7.8871]
[1724755685915,1.54602362,2645.7,2645.5,11.66699]
[1724755686101,1.54602362,2645.8,2645.5,11.66699]
[1724755686515,1.54602362,2645.8,2645.5,7.8871]
[1724755686930,1.54602362,2645.8,2645.6,7.7615]
[1724755687443,1.54602362,2645.7,2645.6,7.7615]
[1724755688454,1.93333268,2645.7,2645.6,7.7615]
[1724755691532,1.93383604,2645.7,2645.3,7.5283]
[1724755691825,1.54708659,2645.5,2645.3,7.5283]
[1724755692046,1.93383604,2645.6,2645.3,7.5283]
[1724755692047,1.54708659,2645.4,2645.3,7.5283]
[1724755693224,1.93383604,2645.5,2645.3,7.5283]
[1724755693566,9.88017325,2645.7,2645.3,7.5283]
[1724755693567,1.93383604,2645.4,2645.3,7.5283]
[1724755695334,5.71397604,2645.4,2644.7,7.7381]
[1724755695652,1.54754038,2645.2,2644.7,7.7381]
[1724755695831,1.54754038,2644.9,2644.7,7.7381]
[1724755696018,1.93383604,2644.8,2644.7,7.7381]
[1724755696219,1.93383604,2644.8,2644.2,7.8824]
[1724755696220,5.71497604,2644.8,2644.2,7.8824]
[1724755696414,1.54668577,2644.6,2644.2,7.8824]
[1724755696654,1.54668577,2644.4,2644.2,7.8824]
[1724755696853,1.54668577,2644.5,2644.2,7.8824]
[1724755697056,1.54668577,2644.4,2644.2,7.8824]
[1724755697229,1.54668577,2644.5,2644.2,7.8824]
[1724755697921,1.54668577,2644.6,2644.2,8.74664]
[1724755698455,1.54668577,2644.7,2644.3,7.7219]
[1724755698757,1.54668577,2644.7,2644.3,8.95869]
[1724755699120,4.54668577,2644.8,2644.4,3.78157]
[1724755699366,3.0,2644.8,2644.5,7.7219]
[1724755699525,4.54668577,2644.9,2644.5,11.50329]
[1724755699854,4.54668577,2644.9,2644.5,12.777298]
[1724755700281,3.0,2644.9,2644.6,7.7219]
[1724755700559,1.54668577,2645.0,2644.6,7.7219]
[1724755701063,1.54668577,2645.3,2644.8,11.90799]
[1724755701233,1.54668577,2645.3,2644.8,8.127]
[1724755701435,1.54668577,2645.2,2644.8,8.127]
[1724755701637,1.54668577,2645.2,2644.8,9.43864418]
[1724755701833,1.54668577,2645.2,2644.8,8.127]
[1724755702038,1.54668577,2645.1,2644.8,8.127]
[1724755702669,5.71245765,2645.3,2644.8,8.127]
[1724755702670,1.54668577,2645.2,2644.8,8.127]
[1724755704476,5.32713577,2645.2,2644.8,8.127]
[1724755704658,1.54668577,2645.1,2644.8,8.127]
[1724755705198,1.54668577,2645.2,2644.8,8.127]
[1724755706869,1.54668577,2645.1,2644.8,8.127]
[1724755707515,1.54668577,2645.2,2644.8,11.90792]
[1724755707676,1.54668577,2645.3,2644.8,8.127]
[1724755708006,1.54668577,2645.3,2644.9,3.78085]
[1724755708309,1.54668577,2645.3,2645.0,7.6969]
[1724755708669,4.54668577,2645.4,2645.0,7.6969]
[1724755709005,1.54668577,2645.4,2645.2,3.78041]
[1724755709317,1.54668577,2645.6,2645.3,8.08250209]
[1724755709602,1.54668577,2645.6,2645.3,7.6969]
[1724755710165,1.54668577,2645.7,2645.3,7.6969]
[1724755710390,1.54668577,2645.6,2645.3,7.6969]
[1724755711482,1.54668577,2645.6,2645.4,0.76969]
[1724755711810,1.54668577,2645.6,2645.3,7.6969]
[1724755713180,1.54668577,2645.7,2645.3,7.6969]
[1724755713375,1.54668577,2645.7,2645.4,3.78013]
[1724755713612,1.54668577,2645.7,2645.5,7.6355]
[1724755713780,1.54668577,2645.7,2645.5,9.08576402]
[1724755715883,1.54668577,2645.8,2645.5,1.45026402]
[1724755716084,1.54668577,2646.0,2645.8,7.668]
[1724755716279,1.93510335,2646.1,2645.8,7.668]
[1724755716280,1.54668577,2646.1,2645.8,7.668]
[1724755717122,1.93510335,2646.3,2645.9,8.51038584]
[1724755717123,1.54668577,2646.3,2645.9,8.51038584]
[1724755717418,1.54668577,2646.2,2645.9,8.4348]
[1724755717621,1.54668577,2646.2,2645.9,7.668]
[1724755717784,1.54668577,2646.1,2645.9,7.668]
[1724755718282,1.54668577,2646.0,2645.9,7.668]
[1724755718886,1.54818616,2646.0,2645.9,7.668]
[1724755719301,1.10415195,2646.0,2645.9,7.668]
[1724755719508,3.03927089,2646.0,2645.9,7.668]
[1724755719706,1.10415195,2646.0,2645.3,7.6258]
[1724755720010,1.54800256,2645.5,2645.3,7.6258]
[1724755720990,1.54800256,2645.6,2645.3,7.6258]
[1724755722385,1.54800256,2645.7,2645.5,3.78]
[1724755722619,1.54800256,2645.9,2645.7,8.0252]
[1724755723116,1.54800256,2646.0,2645.9,8.0252]
[1724755723284,1.54800256,2646.1,2645.9,8.0252]
[1724755723927,1.54800256,2646.1,2645.9,11.80462]
[1724755724086,1.54800256,2646.2,2646.1,8.0252]
[1724755724430,1.54800256,2646.3,2646.1,8.0252]
[1724755726288,1.54800256,2646.4,2646.1,8.0252]
[1724755726488,1.54800256,2646.3,2646.1,8.0252]
[1724755726891,1.54800256,2646.4,2646.1,8.0252]
[1724755727600,2.27417081,2646.4,2646.1,8.0252]
[1724755727936,3.779,2646.2,2646.1,8.0252]
[1724755728087,5.71409992,2646.2,2645.5,7.5057]
[1724755728289,3.77931,2646.0,2645.5,7.5057]
[1724755728510,1.54682684,2645.9,2645.5,7.5057]
[1724755728895,1.54682684,2646.0,2645.5,7.5057]
[1724755729310,1.54682684,2645.9,2645.5,7.5057]
[1724755730934,2.27275187,2645.9,2645.5,7.5057]
[1724755731100,5.32651684,2645.8,2645.5,7.5057]
[1724755732434,1.54682684,2645.8,2645.5,7.5057]
[1724755732623,1.54682684,2645.9,2645.5,7.5057]
[1724755732943,1.54682684,2645.8,2645.5,7.5057]
[1724755733339,1.54682684,2645.8,2645.5,8.25627]
[1724755733502,1.54682684,2645.8,2645.6,7.5057]
[1724755733704,1.54682684,2645.9,2645.6,7.5057]
[1724755733926,1.54682684,2646.0,2645.6,7.5057]
[1724755734730,1.54682684,2645.9,2645.6,7.5057]
[1724755735045,1.54682684,2646.0,2645.6,7.5057]
[1724755735820,1.54682684,2646.0,2645.6,8.634268]
[1724755736009,1.54682684,2646.1,2645.8,7.5057]
[1724755736213,1.54682684,2646.2,2645.8,7.5057]
[1724755736446,1.54682684,2646.2,2645.8,8.75465419]
[1724755737464,1.54682684,2646.2,2645.8,7.5057]
[1724755737665,1.54682684,2646.1,2645.8,7.5057]
[1724755737841,1.54682684,2646.2,2645.8,7.5057]
[1724755739062,5.32587684,2646.2,2645.8,7.5057]
[1724755739268,1.54682684,2646.1,2645.8,7.5057]
[1724755739560,1.54682684,2646.2,2645.8,7.5057]
[1724755739937,1.54682684,2646.3,2645.8,7.5057]
[1724755740375,1.54682684,2646.4,2646.0,7.3446]
[1724755740573,1.54682684,2646.4,2646.0,7.42017614]
[1724755740877,1.54682684,2646.5,2646.0,7.42017614]
[1724755741025,1.54682684,2646.4,2646.0,7.3446]
[1724755741361,1.54682684,2646.3,2646.0,7.3446]
[1724755741666,1.54682684,2646.4,2646.0,7.3446]
[1724755741882,1.54682684,2646.3,2646.0,7.3446]
[1724755742334,5.32573684,2646.3,2646.0,7.3446]
[1724755742542,1.54682684,2646.3,2646.0,7.3446]
[1724755743967,1.54682684,2646.4,2646.0,7.3446]
[1724755745372,1.54682684,2646.3,2646.0,7.3446]
[1724755745964,1.54682684,2646.4,2646.0,7.3446]
[1724755746379,1.54682684,2646.4,2646.1,7.09777614]
[1724755746673,1.54682684,2646.6,2646.1,7.09777614]
[1724755747978,1.54682684,2646.5,2646.1,7.09777614]
[1724755748372,1.54682684,2646.5,2646.1,7.0222]
[1724755748539,1.54682684,2646.5,2646.1,7.72442]
[1724755749830,1.54682684,2646.5,2646.3,7.5841]
[1724755750032,1.54682684,2646.6,2646.3,7.5841]
[1724755750665,1.54682684,2646.6,2646.4,0.07556956]
[1724755750930,5.32054181,2647.0,2646.4,8.04511152]
[1724755750931,1.54682684,2646.8,2646.4,8.04511152]
[1724755751158,1.54682684,2646.9,2646.4,8.04511152]
[1724755751343,1.54682684,2646.9,2646.6,6.9476]
[1724755751545,1.54682684,2646.8,2646.6,6.9476]
[1724755753648,1.54682684,2646.9,2646.6,6.9476]
[1724755753971,1.54682684,2646.9,2646.8,7.4783]
[1724755755498,1.54682684,2647.0,2646.8,7.4783]
[1724755755976,1.54682684,2646.9,2646.8,7.4783]
[1724755756361,1.93451918,2647.1,2646.8,7.4783]
[1724755756362,1.54682684,2647.0,2646.8,7.4783]
[1724755759154,1.54682684,2647.0,2646.8,8.22613]
[1724755759354,1.54682684,2647.0,2646.8,8.98613]
[1724755760780,5.32473684,2647.0,2646.8,8.2383]
[1724755760986,1.93236869,2646.9,2646.8,8.2383]
[1724755762522,1.54537208,2646.9,2646.8,8.2383]
[1724755763477,1.54537208,2647.0,2646.8,8.2383]
[1724755764517,1.54537208,2647.1,2646.8,8.2383]
[1724755766203,1.54537208,2647.0,2646.8,8.2383]
[1724755771038,1.54537208,2646.9,2646.8,8.2383]
[1724755771330,1.54537208,2647.0,2646.8,8.2383]
[1724755773315,1.54537208,2647.1,2646.8,8.2383]
[1724755774892,1.54537208,2647.2,2647.0,2.2699]
[1724755775318,1.54537208,2647.1,2647.0,2.2699]
[1724755775523,1.93357281,2647.1,2647.0,2.2699]
[1724755775724,7.43584248,2647.1,2647.0,2.2699]
[1724755777424,4.34883228,2647.1,2647.0,2.2699]
[1724755777697,3.77771,2647.1,2647.0,2.2699]
[1724755779214,9.87529737,2647.3,2647.0,2.2699]
[1724755779549,6.09787737,2647.2,2647.0,2.2699]
[1724755781528,6.09799737,2647.1,2647.0,2.2699]
[1724755783017,14.4201402,2647.1,2647.0,2.2699]
[1724755783231,11.334,2646.9,2646.8,3.0631]
[1724755783436,19.97799455,2646.9,2646.8,0.76]
[1724755783600,16.77363662,2646.9,2646.8,0.76]
[1724755783803,20.55704325,2646.9,2646.8,0.76]
[1724755784037,16.77363662,2646.9,2646.8,0.76]
[1724755784702,12.99563662,2646.9,2646.8,3.2234]
[1724755785440,10.556,2646.9,2646.8,3.2234]
[1724755785805,13.26906917,2646.9,2646.8,3.2234]
[1724755786004,10.556,2646.9,2646.8,3.2234]
[1724755786206,6.29109831,2647.1,2646.8,3.2234]
[1724755786533,2.32598097,2646.9,2646.8,0.76]
[1724755786729,3.77787,2647.0,2646.8,0.76]
[1724755786928,3.77787,2647.0,2646.9,2.3522]
[1724755787517,7.55582,2647.0,2646.9,2.3522]
[1724755787718,13.26897471,2647.0,2646.9,2.3522]
[1724755787924,16.35268829,2647.0,2646.9,2.3522]
[1724755788136,7.556,2646.9,2646.8,0.76]
[1724755788331,14.334,2646.9,2646.8,0.76]
[1724755788945,18.11740663,2646.9,2646.8,0.76]
[1724755789161,19.546931,2646.9,2646.8,0.76]
[1724755789534,15.76352437,2646.9,2646.8,0.76]
[1724755789854,19.546931,2646.9,2646.8,0.76]
[1724755790545,15.76352437,2646.9,2646.8,0.76]
[1724755792033,18.96726445,2646.9,2646.8,0.76]
[1724755792964,18.96726445,2646.9,2646.8,3.1271]
[1724755793370,15.76352437,2646.9,2646.8,3.1271]
[1724755793670,11.98552437,2646.9,2646.8,3.1271]
[1724755794781,3.7779,2647.0,2646.9,2.4138]
[1724755795942,9.10305393,2647.0,2646.9,2.4138]
[1724755796349,9.10303985,2647.0,2646.9,2.4138]
[1724755796866,6.7779,2647.0,2646.9,2.4138]
[1724755797373,2.32519542,2647.0,2646.9,2.4138]
[1724755797574,6.10305542,2647.0,2646.9,2.4138]
[1724755797890,6.10298728,2647.0,2646.9,2.4138]
[1724755799690,2.32512728,2647.0,2646.9,2.4138]
[1724755799911,5.32512728,2647.1,2646.9,2.4138]
[1724755800404,2.32512728,2647.1,2646.9,2.73118]
[1724755800764,6.10269728,2647.2,2646.9,2.73118]
[1724755801168,6.10296728,2647.1,2646.9,2.4138]
[1724755801412,6.10298728,2647.0,2646.9,2.4138]
[1724755801585,9.88054327,2647.0,2646.9,2.4138]
[1724755801917,6.10268327,2647.0,2646.9,2.4138]
[1724755802408,7.55572,2647.0,2646.9,2.4138]
[1724755803481,9.88068492,2647.0,2646.9,2.4138]
[1724755803691,7.55572,2647.0,2646.9,2.4138]
[1724755803889,9.88096114,2647.0,2646.9,2.4138]
[1724755804708,7.55572,2647.0,2646.9,2.4138]
[1724755805209,11.60351622,2647.0,2646.9,2.4138]
[1724755805423,11.8912224,2647.0,2646.9,2.4138]
[1724755805703,14.60351622,2647.0,2646.9,2.4138]
[1724755805910,11.8912224,2647.0,2646.9,2.4138]
[1724755808035,6.77786,2647.0,2646.9,2.4138]
[1724755810697,9.49058277,2647.0,2646.9,2.4138]
[1724755810895,6.77786,2647.0,2646.9,2.4138]
[1724755814727,13.26875325,2647.0,2646.9,2.4138]
[1724755815333,9.49089325,2647.0,2646.9,2.4138]
[1724755816043,2.71303325,2647.1,2646.9,2.73118]
[1724755816245,2.32588435,2647.2,2646.9,2.73118]
[1724755816542,2.32588435,2647.2,2646.9,2.48935544]
[1724755816702,3.0,2647.3,2646.9,2.48935544]
[1724755816703,1.93835707,2647.0,2646.9,2.48935544]
[1724755817592,1.93835707,2647.0,2646.9,2.4138]
[1724755817795,1.93835707,2647.0,2646.9,2.73118]
[1724755818344,1.93835707,2647.1,2647.0,2.4463]
[1724755818506,2.32588435,2647.3,2647.0,2.4463]
[1724755818706,2.32588435,2647.3,2646.9,0.94292965]
[1724755818707,2.32588435,2647.3,2647.2,2.4463]
[1724755820822,2.32516308,2647.3,2647.2,2.4463]
[1724755822145,1.93774954,2647.3,2647.2,2.4463]
[1724755822312,1.55033549,2647.3,2647.2,2.4463]
[1724755822634,1.93774954,2647.4,2647.2,2.4463]
[1724755822635,1.55033549,2647.4,2647.2,2.4463]
[1724755822835,1.55033549,2647.4,2647.3,2.62303]
[1724755823394,1.55020485,2647.4,2647.3,2.62303]
[1724755823597,7.55458,2647.4,2647.3,2.3784]
[1724755823906,12.87974308,2647.4,2647.3,2.3784]
[1724755824132,13.63961836,2647.4,2647.3,2.3784]
[1724755824605,16.35230863,2647.4,2647.3,2.3784]
[1724755825139,18.36524549,2647.4,2647.3,2.3784]
[1724755825475,15.65255522,2647.4,2647.3,2.3784]
[1724755825655,12.56751686,2647.4,2647.3,2.3784]
[1724755825993,15.27903462,2647.4,2647.3,2.3784]
[1724755826193,12.56751686,2647.4,2647.3,2.3784]
[1724755826439,18.36407298,2647.4,2647.3,2.3784]
[1724755826598,15.65255522,2647.4,2647.3,2.3784]
[1724755827435,18.36460246,2647.4,2647.3,2.3784]
[1724755827737,15.65255522,2647.4,2647.3,2.3784]
[1724755828236,18.36465824,2647.4,2647.3,2.3784]
[1724755829035,10.55458,2647.4,2647.3,2.3784]
[1724755830464,16.35137866,2647.4,2647.3,2.3784]
[1724755831255,13.63961836,2647.4,2647.3,2.3784]
[1724755831455,10.55458,2647.4,2647.3,2.3784]
[1724755831751,13.2663403,2647.4,2647.3,2.3784]
[1724755831947,15.29100301,2647.4,2647.3,2.3784]
[1724755832114,12.57924271,2647.4,2647.3,2.3784]
[1724755832510,15.29100301,2647.4,2647.3,2.3784]
[1724755832757,12.57924271,2647.4,2647.3,2.3784]
[1724755834753,6.77729,2647.4,2647.3,2.3784]
[1724755836464,13.63961836,2647.4,2647.3,2.3784]
[1724755837092,16.35368685,2647.4,2647.3,2.3784]
[1724755837463,10.55458,2647.4,2647.3,2.3784]
[1724755837690,9.49215113,2647.4,2647.3,2.3784]
[1724755839890,9.49560895,2647.4,2647.3,2.3784]
[1724755841388,11.14398727,2647.4,2647.3,2.3784]
[1724755841594,9.49560895,2647.4,2647.3,2.3784]
[1724755842363,16.35793731,2647.4,2647.3,2.3784]
[1724755842597,13.63961836,2647.4,2647.3,2.3784]
[1724755842808,17.41690836,2647.4,2647.3,2.3784]
[1724755843100,11.334,2646.9,2646.8,0.76]
[1724755843251,17.63033177,2646.9,2646.8,0.76]
[1724755843453,20.63021206,2646.9,2646.8,3.1728]
[1724755843987,18.83144362,2646.9,2646.8,3.1728]
[1724755844188,17.50341428,2646.9,2646.8,3.1728]
[1724755845306,21.35696638,2646.9,2646.8,3.1728]
[1724755845659,17.50341428,2646.9,2646.8,3.1728]
[1724755845869,23.19514723,2646.9,2646.8,3.1728]
[1724755846105,24.99638839,2646.9,2646.8,3.1728]
[1724755846801,24.99638839,2646.9,2646.8,0.76]
[1724755847102,29.20505993,2646.9,2646.8,0.76]
[1724755847462,25.35150783,2646.9,2646.8,0.76]
[1724755847676,29.20076337,2646.9,2646.8,0.76]
[1724755848049,20.87350783,2646.9,2646.8,0.76]
[1724755848304,18.7346539,2646.9,2646.8,3.1344]
[1724755848467,15.52665544,2646.9,2646.8,3.1344]
[1724755849060,18.7346539,2646.9,2646.8,3.1344]
[1724755849298,18.73418597,2646.9,2646.8,3.1344]
[1724755849711,15.52665544,2646.9,2646.8,3.1344]
[1724755849914,18.73418597,2646.9,2646.8,3.1344]
[1724755850679,15.52665544,2646.9,2646.8,3.1344]
[1724755851511,18.24104964,2646.9,2646.8,3.1344]
[1724755851886,18.06144964,2646.9,2646.8,3.1344]
[1724755852087,15.34705544,2646.9,2646.8,3.1344]
[1724755852887,18.0615655,2646.9,2646.8,3.1344]
[1724755853095,16.17842114,2646.9,2646.8,3.1344]
[1724755854114,13.46391108,2646.9,2646.8,3.1344]
[1724755854467,16.17825341,2646.9,2646.8,3.1344]
[1724755855129,13.46391108,2646.9,2646.8,3.1344]
[1724755856190,3.5984,2646.9,2646.8,3.1344]
[1724755856418,9.8823049,2647.0,2646.8,3.44784]
[1724755856588,3.778,2646.9,2646.8,3.56334]
[1724755856916,3.778,2646.9,2646.8,3.2499]
[1724755857506,6.1045149,2646.9,2646.8,3.2499]
[1724755857701,3.778,2646.9,2646.8,3.2499]
[1724755858102,2.3265149,2647.1,2646.8,0.76]
[1724755858314,2.3265149,2647.1,2646.9,2.2645]
[1724755858315,3.77787,2647.0,2646.9,2.2645]
[1724755858690,6.77787,2647.0,2646.9,2.2645]
[1724755859090,20.13569579,2647.0,2646.9,2.2645]
[1724755859293,21.35491173,2647.0,2646.9,2.2645]
[1724755860755,18.64033702,2647.0,2646.9,2.2645]
[1724755860903,21.8469284,2647.0,2646.9,2.2645]
[1724755861220,18.64033702,2647.0,2646.9,2.2645]
[1724755862306,21.35370201,2647.0,2646.9,2.2645]
[1724755862502,21.35361481,2647.0,2646.9,2.2645]
[1724755862707,14.86246702,2647.0,2646.9,2.2645]
[1724755863097,16.35656947,2647.0,2646.9,2.2645]
[1724755864368,20.13442947,2647.0,2646.9,2.2645]
[1724755864652,17.42111108,2647.0,2646.9,2.2645]
[1724755865046,17.42111108,2647.0,2646.8,0.76]
[1724755865047,15.112,2646.9,2646.8,0.76]
[1724755865250,21.6858176,2646.9,2646.8,0.76]
[1724755865707,25.98804074,2646.9,2646.8,0.76]
[1724755865907,22.90052966,2646.9,2646.8,0.76]
[1724755866555,19.12252966,2646.9,2646.8,0.76]
[1724755866707,21.1121382,2646.9,2646.8,0.76]
[1724755866924,21.11206822,2646.9,2646.8,0.76]
[1724755867570,17.9078176,2646.9,2646.8,3.1725]
[1724755869061,24.89006822,2646.9,2646.8,3.1725]
[1724755869263,21.6858176,2646.9,2646.8,3.1725]
[1724755869846,41.1858176,2646.9,2646.8,0.76]
[1724755870028,42.40052966,2646.9,2646.8,0.76]
[1724755870643,15.81256,2646.8,2646.7,2.2872]
[1724755870940,3.77975,2645.7,2644.8,3.78099]
[1724755871144,5.33046997,2645.6,2644.7,3.78104]
[1724755871326,1.55059997,2645.5,2644.8,0.591244]
[1724755871941,1.55059997,2645.5,2644.9,3.78086]
[1724755872157,1.55059997,2645.6,2644.8,4.372164]
[1724755872372,1.55059997,2645.6,2644.9,0.4372284]
[1724755873733,1.55059997,2645.6,2645.0,2.2588]
[1724755873964,1.55059997,2645.6,2645.2,2.2588]
[1724755874354,3.78002,2645.5,2645.2,2.2588]
[1724755874561,1.55059997,2645.5,2645.2,2.2588]
[1724755874755,1.55059997,2645.5,2645.2,2.125303]
[1724755874980,5.33060997,2645.5,2645.2,2.125303]
[1724755875259,1.55059997,2645.4,2645.2,2.125303]
[1724755875482,2.65545798,2645.4,2645.2,2.125303]
[1724755875762,10.64807108,2645.3,2645.2,2.125303]
[1724755875960,13.64807108,2645.3,2645.2,2.125303]
[1724755876190,20.13796743,2645.3,2645.2,2.125303]
[1724755876369,13.64807108,2645.3,2645.2,2.125303]
[1724755876578,24.02300339,2645.3,2645.2,2.125303]
[1724755876777,21.70216868,2645.3,2645.2,2.125303]
[1724755876983,24.41178503,2645.3,2645.2,2.125303]
[1724755877695,21.70216868,2645.3,2645.2,2.125303]
[1724755877998,3.78141,2644.6,2643.7,2.2754]
[1724755878227,3.78144,2644.5,2643.8,2.2754]
[1724755878367,3.7818,2644.3,2644.0,2.2754]
[1724755878562,3.78195,2644.2,2644.0,2.2754]
[1724755879056,10.56334,2644.4,2644.0,2.2754]
[1724755879256,10.56334,2644.4,2644.0,2.50294]
[1724755879257,3.0,2644.4,2644.0,2.50294]
[1724755879460,3.0,2644.5,2644.0,2.50294]
[1724755879701,3.0,2644.5,2644.2,2.2786]
[1724755880007,3.0,2644.7,2644.4,2.2786]
[1724755880308,6.78114,2644.7,2644.4,2.2786]
[1724755882176,3.78129,2644.6,2644.4,2.2786]
[1724755882373,3.0,2644.5,2644.4,2.2786]
[1724755883676,10.56286,2644.5,2644.4,2.2786]
[1724755883875,11.619146,2644.5,2644.4,2.2786]
[1724755884574,10.56286,2644.5,2644.4,2.2786]
[1724755884923,14.34429,2644.5,2644.4,2.2786]
[1724755887513,17.43180108,2644.5,2644.4,2.2786]
[1724755889074,13.65037108,2644.5,2644.4,2.2786]
[1724755890035,6.78143,2644.5,2644.4,2.2786]
[1724755890537,10.56286,2644.5,2644.4,2.2786]
[1724755890827,11.619132,2644.5,2644.4,2.2786]
[1724755892286,6.78143,2644.5,2644.4,2.2786]
[1724755892488,13.65037108,2644.5,2644.4,2.2786]